[Event "*** Titled Tuesday Blitz"]
[Site "Chess.com"]
[Date "2019.07.02"]
[Round "8"]
[White "przemekpiotrowski"]
[Black "MateusViageiro"]
[Result "1-0"]
[WhiteElo "2325"]
[BlackElo "2169"]
[TimeControl "180+2"]
[EndTime "14:48:21 PDT"]
[Termination "przemekpiotrowski won by resignation"]

1. d4 {[%clk 0:03:01.9]} 1... Nf6 {[%clk 0:03:00.1]} 2. Nf3 {[%clk 0:03:02.8]}
2... g6 {[%clk 0:02:59.8]} 3. g3 {[%clk 0:03:04.3]} 3... Bg7 {[%clk 0:02:58.2]}
4. Bg2 {[%clk 0:03:05.9]} 4... O-O {[%clk 0:02:58.4]} 5. O-O {[%clk 0:03:07.4]}
5... d5 {[%clk 0:02:56.5]} 6. c4 {[%clk 0:03:08.9]} 6... c6 {[%clk 0:02:56.4]}
7. cxd5 {[%clk 0:03:10.1]} 7... cxd5 {[%clk 0:02:56.2]} 8. Nc3 {[%clk
0:03:11.7]} 8... Nc6 {[%clk 0:02:55.6]} 9. Ne5 {[%clk 0:03:12.3]} 9... Re8
{[%clk 0:02:48.8]} 10. Bf4 {[%clk 0:03:04]} 10... Be6 {[%clk 0:02:41.6]} 11.
Nxc6 {[%clk 0:03:03.1]} 11... bxc6 {[%clk 0:02:41.2]} 12. Rc1 {[%clk 0:03:01.9]}
12... Rc8 {[%clk 0:02:34.1]} 13. Na4 {[%clk 0:03:01.1]} 13... Nh5 {[%clk
0:02:29.7]} 14. Be3 {[%clk 0:03:00.4]} 14... Nf6 {[%clk 0:02:21.4]} 15. Nc5
{[%clk 0:02:56]} 15... Bf5 {[%clk 0:02:21.7]} 16. Qa4 {[%clk 0:02:55.3]} 16...
Qb6 {[%clk 0:02:19.1]} 17. b4 {[%clk 0:02:49.2]} 17... Ng4 {[%clk 0:02:17.7]}
18. Qb3 {[%clk 0:01:52.3]} 18... Nxe3 {[%clk 0:02:10.9]} 19. Qxe3 {[%clk
0:01:54.2]} 19... e5 {[%clk 0:01:56.9]} 20. dxe5 {[%clk 0:01:49.5]} 20... Rxe5
{[%clk 0:01:53.7]} 21. Qd2 {[%clk 0:01:46]} 21... Rce8 {[%clk 0:01:16.6]} 22. e3
{[%clk 0:01:45.7]} 22... R5e7 {[%clk 0:01:13.7]} 23. a3 {[%clk 0:01:41.8]} 23...
Rd8 {[%clk 0:01:09.6]} 24. Rfd1 {[%clk 0:01:37.7]} 24... Ree8 {[%clk 0:01:07.6]}
25. Nb3 {[%clk 0:01:33.4]} 25... Bg4 {[%clk 0:00:59]} 26. Re1 {[%clk 0:01:31]}
26... h5 {[%clk 0:00:52.2]} 27. h3 {[%clk 0:01:30.4]} 27... Bf5 {[%clk
0:00:50.3]} 28. Red1 {[%clk 0:01:28.2]} 28... Bc8 {[%clk 0:00:46.9]} 29. Nd4
{[%clk 0:01:26.4]} 29... Bb7 {[%clk 0:00:45.7]} 30. h4 {[%clk 0:01:25.8]} 30...
Bf8 {[%clk 0:00:42.8]} 31. Nb3 {[%clk 0:01:25]} 31... Ba6 {[%clk 0:00:42.2]} 32.
Qd4 {[%clk 0:01:25.4]} 32... Qb5 {[%clk 0:00:32.7]} 33. Nc5 {[%clk 0:01:22.2]}
33... Bxc5 {[%clk 0:00:30.6]} 34. Rxc5 {[%clk 0:01:24.1]} 34... Qb7 {[%clk
0:00:30]} 35. Rdc1 {[%clk 0:01:19.7]} 35... Bb5 {[%clk 0:00:29.1]} 36. Bf1
{[%clk 0:01:18.4]} 36... a6 {[%clk 0:00:24.3]} 37. Bxb5 {[%clk 0:01:16.1]} 37...
cxb5 {[%clk 0:00:26.2]} 38. Rc7 {[%clk 0:01:16.7]} 38... Qa8 {[%clk 0:00:27.3]}
39. Ra7 {[%clk 0:01:11.8]} 39... Qb8 {[%clk 0:00:27.2]} 40. Rcc7 {[%clk
0:01:12.6]} 40... Rf8 {[%clk 0:00:27]} 41. Qf6 {[%clk 0:01:13.4]} 1-0

[Event "*** Titled Tuesday Blitz"]
[Site "Chess.com"]
[Date "2019.07.02"]
[Round "8"]
[White "Etoilegeniale"]
[Black "GrigorGrigorov"]
[Result "1/2-1/2"]
[WhiteElo "2515"]
[BlackElo "2776"]
[TimeControl "180+2"]
[EndTime "14:48:28 PDT"]
[Termination "Game drawn by repetition"]

1. e4 {[%clk 0:03:01.9]} 1... c6 {[%clk 0:03:00.7]} 2. d4 {[%clk 0:02:56.5]}
2... d5 {[%clk 0:03:01.3]} 3. exd5 {[%clk 0:02:55.4]} 3... cxd5 {[%clk
0:03:01.8]} 4. Bd3 {[%clk 0:02:56.1]} 4... Nf6 {[%clk 0:03:00.6]} 5. c3 {[%clk
0:02:55.8]} 5... Bg4 {[%clk 0:03:00.1]} 6. Qb3 {[%clk 0:02:54.6]} 6... Qd7
{[%clk 0:02:51.1]} 7. Nd2 {[%clk 0:02:54.1]} 7... Nc6 {[%clk 0:02:44.1]} 8. Ngf3
{[%clk 0:02:50.7]} 8... e6 {[%clk 0:02:24.5]} 9. O-O {[%clk 0:02:50.7]} 9... Bd6
{[%clk 0:02:24.6]} 10. h3 {[%clk 0:02:51.5]} 10... Bh5 {[%clk 0:02:24.1]} 11.
Re1 {[%clk 0:02:52.4]} 11... O-O {[%clk 0:02:21.1]} 12. Ne5 {[%clk 0:02:45.2]}
12... Qc7 {[%clk 0:02:22.1]} 13. Ndf3 {[%clk 0:02:42.4]} 13... Bg6 {[%clk
0:02:11.2]} 14. Nxg6 {[%clk 0:02:25.9]} 14... hxg6 {[%clk 0:02:13.1]} 15. Bd2
{[%clk 0:02:19.6]} 15... Rab8 {[%clk 0:02:04.5]} 16. Re2 {[%clk 0:02:06.2]}
16... b5 {[%clk 0:02:01.3]} 17. a3 {[%clk 0:02:06.7]} 17... Na5 {[%clk
0:01:58.1]} 18. Qc2 {[%clk 0:02:07.1]} 18... Nc4 {[%clk 0:01:58.9]} 19. Rae1
{[%clk 0:02:07.3]} 19... Bf4 {[%clk 0:01:48.5]} 20. Bxf4 {[%clk 0:02:03.1]}
20... Qxf4 {[%clk 0:01:49.6]} 21. Ne5 {[%clk 0:02:04.1]} 21... Nxe5 {[%clk
0:01:47]} 22. Rxe5 {[%clk 0:01:52.6]} 22... Nd7 {[%clk 0:01:47.6]} 23. R5e3
{[%clk 0:01:48.1]} 23... Qd6 {[%clk 0:01:44.2]} 24. h4 {[%clk 0:01:47.2]} 24...
Nf6 {[%clk 0:01:43.7]} 25. Qe2 {[%clk 0:01:43.9]} 25... a6 {[%clk 0:01:19]} 26.
Re5 {[%clk 0:01:41.4]} 26... Nd7 {[%clk 0:01:11.7]} 27. Re3 {[%clk 0:01:38.4]}
27... Nf6 {[%clk 0:01:12.4]} 28. Re5 {[%clk 0:01:38]} 28... Rfe8 {[%clk
0:00:58.3]} 29. g3 {[%clk 0:01:30]} 29... Qc6 {[%clk 0:00:53.8]} 30. Kg2 {[%clk
0:01:23]} 30... a5 {[%clk 0:00:54.2]} 31. Rh1 {[%clk 0:01:18.2]} 31... b4 {[%clk
0:00:54.4]} 32. axb4 {[%clk 0:01:15.6]} 32... axb4 {[%clk 0:00:56.3]} 33. h5
{[%clk 0:01:16.6]} 33... gxh5 {[%clk 0:00:54.5]} 34. Rexh5 {[%clk 0:01:17.1]}
34... Nxh5 {[%clk 0:00:55]} 35. Qxh5 {[%clk 0:01:17.3]} 35... Kf8 {[%clk
0:00:55.2]} 36. Qg5 {[%clk 0:01:10.5]} 36... Kg8 {[%clk 0:00:38]} 37. Bh7+
{[%clk 0:00:45.6]} 37... Kf8 {[%clk 0:00:39.1]} 38. Bd3 {[%clk 0:00:34.9]} 38...
Kg8 {[%clk 0:00:39.6]} 39. Bh7+ {[%clk 0:00:28.4]} 39... Kf8 {[%clk 0:00:40.6]}
40. Bd3 {[%clk 0:00:20.6]} 1/2-1/2

[Event "*** Titled Tuesday Blitz"]
[Site "Chess.com"]
[Date "2019.07.02"]
[Round "8"]
[White "Sajkochess"]
[Black "sandager"]
[Result "0-1"]
[WhiteElo "2235"]
[BlackElo "2124"]
[TimeControl "180+2"]
[EndTime "14:48:29 PDT"]
[Termination "sandager won by resignation"]

1. d4 {[%clk 0:02:32.4]} 1... Nf6 {[%clk 0:02:58.3]} 2. Nf3 {[%clk 0:02:32.6]}
2... g6 {[%clk 0:02:58.8]} 3. c4 {[%clk 0:02:31.9]} 3... Bg7 {[%clk 0:02:59.5]}
4. Nc3 {[%clk 0:02:33.3]} 4... d5 {[%clk 0:03:00.9]} 5. e3 {[%clk 0:02:33.9]}
5... O-O {[%clk 0:03:00.8]} 6. Qb3 {[%clk 0:02:34.7]} 6... dxc4 {[%clk
0:02:59.9]} 7. Bxc4 {[%clk 0:02:36.6]} 7... Nc6 {[%clk 0:03:00.1]} 8. d5 {[%clk
0:02:19.9]} 8... Na5 {[%clk 0:02:59.3]} 9. Qa4 {[%clk 0:02:15.6]} 9... Nxc4
{[%clk 0:02:43]} 10. Qxc4 {[%clk 0:02:15.4]} 10... e6 {[%clk 0:02:43.7]} 11. e4
{[%clk 0:01:55.2]} 11... exd5 {[%clk 0:02:44]} 12. Nxd5 {[%clk 0:01:56.5]} 12...
Nxd5 {[%clk 0:02:42.3]} 13. Qxd5 {[%clk 0:01:57.6]} 13... Qxd5 {[%clk
0:02:37.9]} 14. exd5 {[%clk 0:01:59.5]} 14... Rd8 {[%clk 0:02:33.4]} 15. Bf4
{[%clk 0:01:53.4]} 15... Rxd5 {[%clk 0:02:23.5]} 16. Bxc7 {[%clk 0:01:42.4]}
16... Bxb2 {[%clk 0:02:23.7]} 17. Rd1 {[%clk 0:01:39.4]} 17... Rxd1+ {[%clk
0:02:17]} 18. Kxd1 {[%clk 0:01:38.1]} 18... Be6 {[%clk 0:02:18.2]} 19. Kc2
{[%clk 0:01:35.6]} 19... Rc8 {[%clk 0:02:18]} 20. Kxb2 {[%clk 0:01:35.7]} 20...
Rxc7 {[%clk 0:02:18.8]} 21. Rd1 {[%clk 0:01:33.1]} 21... Rd7 {[%clk 0:02:18.5]}
22. Rxd7 {[%clk 0:01:32.5]} 22... Bxd7 {[%clk 0:02:18.7]} 23. Ne5 {[%clk
0:01:31.7]} 23... Be6 {[%clk 0:02:16.2]} 24. a3 {[%clk 0:01:30.2]} 24... Kf8
{[%clk 0:02:17]} 25. Nd3 {[%clk 0:01:27.7]} 25... Ke7 {[%clk 0:02:16.7]} 26. Kc3
{[%clk 0:01:28.2]} 26... Kd6 {[%clk 0:02:13.7]} 27. Kd4 {[%clk 0:01:28.7]} 27...
b6 {[%clk 0:02:12.2]} 28. f4 {[%clk 0:01:28.6]} 28... f6 {[%clk 0:02:04.8]} 29.
g3 {[%clk 0:01:22.8]} 29... Bd5 {[%clk 0:02:03.7]} 30. Nb4 {[%clk 0:01:19.9]}
30... Bg2 {[%clk 0:02:01.1]} 31. Nc2 {[%clk 0:01:15.5]} 31... b5 {[%clk
0:01:50.3]} 32. h4 {[%clk 0:01:07.8]} 32... h5 {[%clk 0:01:46.6]} 33. Ne3 {[%clk
0:01:02.8]} 33... Bc6 {[%clk 0:01:46]} 34. g4 {[%clk 0:00:36]} 34... hxg4 {[%clk
0:01:33.6]} 35. Nxg4 {[%clk 0:00:36]} 35... Ke7 {[%clk 0:01:34.5]} 36. Kc5
{[%clk 0:00:34.2]} 36... Bd7 {[%clk 0:01:34.4]} 37. Ne3 {[%clk 0:00:34.5]} 37...
Ke6 {[%clk 0:01:23.4]} 38. Nd5 {[%clk 0:00:31.3]} 38... Kf5 {[%clk 0:01:20.6]}
39. Kd6 {[%clk 0:00:31.9]} 39... Be6 {[%clk 0:01:12.3]} 40. Ne7+ {[%clk
0:00:32]} 40... Kxf4 {[%clk 0:01:12.3]} 41. Kxe6 {[%clk 0:00:32.8]} 41... g5
{[%clk 0:01:11.4]} 42. h5 {[%clk 0:00:33.1]} 42... g4 {[%clk 0:01:11.3]} 43. h6
{[%clk 0:00:30.5]} 43... g3 {[%clk 0:01:11.7]} 44. h7 {[%clk 0:00:20.1]} 44...
g2 {[%clk 0:01:12]} 45. h8=N {[%clk 0:00:18]} 45... g1=Q {[%clk 0:01:11.8]} 0-1

[Event "*** Titled Tuesday Blitz"]
[Site "Chess.com"]
[Date "2019.07.02"]
[Round "8"]
[White "ozates"]
[Black "moro182"]
[Result "0-1"]
[WhiteElo "2333"]
[BlackElo "2804"]
[TimeControl "180+2"]
[EndTime "14:48:35 PDT"]
[Termination "moro182 won by resignation"]

1. e4 {[%clk 0:03:01.9]} 1... e5 {[%clk 0:03:00.3]} 2. Nf3 {[%clk 0:03:01.8]}
2... Nc6 {[%clk 0:03:01.5]} 3. Bc4 {[%clk 0:03:02.5]} 3... Bc5 {[%clk 0:03:02]}
4. c3 {[%clk 0:03:02.4]} 4... Nf6 {[%clk 0:03:03.1]} 5. d3 {[%clk 0:03:03.5]}
5... d6 {[%clk 0:03:02.3]} 6. Bb3 {[%clk 0:03:03.3]} 6... a6 {[%clk 0:03:03.4]}
7. Nbd2 {[%clk 0:03:03.3]} 7... Be6 {[%clk 0:02:44]} 8. h3 {[%clk 0:02:57.7]}
8... O-O {[%clk 0:02:42.7]} 9. Nf1 {[%clk 0:02:57.9]} 9... d5 {[%clk 0:02:41.7]}
10. Qe2 {[%clk 0:02:58.6]} 10... d4 {[%clk 0:01:56.1]} 11. g4 {[%clk 0:02:47.3]}
11... a5 {[%clk 0:01:48.9]} 12. Bc2 {[%clk 0:02:46.7]} 12... a4 {[%clk
0:01:47.2]} 13. a3 {[%clk 0:02:46.6]} 13... Nd7 {[%clk 0:01:23.3]} 14. Ng3
{[%clk 0:02:44.7]} 14... dxc3 {[%clk 0:01:06.1]} 15. bxc3 {[%clk 0:02:45.2]}
15... Na5 {[%clk 0:01:07.4]} 16. Ng5 {[%clk 0:02:35.2]} 16... Nb3 {[%clk
0:01:02.7]} 17. Nxe6 {[%clk 0:02:24.2]} 17... fxe6 {[%clk 0:01:03.7]} 18. Bxb3
{[%clk 0:02:25.7]} 18... Bxf2+ {[%clk 0:00:57.5]} 19. Qxf2 {[%clk 0:02:24.1]}
19... Rxf2 {[%clk 0:00:59.4]} 20. Bxe6+ {[%clk 0:02:24.8]} 20... Kh8 {[%clk
0:01:00.9]} 21. Kxf2 {[%clk 0:02:22.1]} 21... Qf6+ {[%clk 0:00:59.9]} 22. Bf5
{[%clk 0:02:05.2]} 22... g6 {[%clk 0:01:01.2]} 23. Be3 {[%clk 0:02:06.5]} 23...
Rd8 {[%clk 0:00:45.4]} 24. Ke2 {[%clk 0:02:01.9]} 24... Nb6 {[%clk 0:00:38.4]}
25. Rhf1 {[%clk 0:01:21.3]} 25... Qc6 {[%clk 0:00:38.3]} 26. Bg5 {[%clk
0:01:12.3]} 26... Rf8 {[%clk 0:00:29.3]} 27. Bd7 {[%clk 0:00:43.7]} 27... Nxd7
{[%clk 0:00:29.7]} 28. Rxf8+ {[%clk 0:00:44]} 28... Nxf8 {[%clk 0:00:31.6]} 29.
Rf1 {[%clk 0:00:44.1]} 29... Kg8 {[%clk 0:00:24.5]} 30. Be7 {[%clk 0:00:33.3]}
30... Ne6 {[%clk 0:00:24.1]} 31. Bb4 {[%clk 0:00:25.1]} 31... Qd7 {[%clk
0:00:22.1]} 32. Rd1 {[%clk 0:00:17.4]} 32... c5 {[%clk 0:00:22.7]} 33. Ba5
{[%clk 0:00:18.7]} 33... Qb5 {[%clk 0:00:24]} 34. Bb4 {[%clk 0:00:12.4]} 34...
cxb4 {[%clk 0:00:25]} 35. axb4 {[%clk 0:00:14.3]} 35... a3 {[%clk 0:00:26.2]}
36. Ra1 {[%clk 0:00:15]} 36... Nf4+ {[%clk 0:00:26.1]} 37. Ke3 {[%clk
0:00:16.1]} 37... Qxd3+ {[%clk 0:00:28]} 0-1

[Event "*** Titled Tuesday Blitz"]
[Site "Chess.com"]
[Date "2019.07.02"]
[Round "8"]
[White "MathiasWomacka"]
[Black "Aleksandr_Kholin"]
[Result "1/2-1/2"]
[WhiteElo "2325"]
[BlackElo "2390"]
[TimeControl "180+2"]
[EndTime "14:48:38 PDT"]
[Termination "Game drawn - insufficient material"]

1. e4 {[%clk 0:03:01.7]} 1... c5 {[%clk 0:02:59.5]} 2. Nf3 {[%clk 0:03:02.1]}
2... d6 {[%clk 0:02:58.3]} 3. d4 {[%clk 0:03:03]} 3... cxd4 {[%clk 0:03:00.2]}
4. Nxd4 {[%clk 0:03:04.4]} 4... Nf6 {[%clk 0:03:02.1]} 5. Nc3 {[%clk 0:03:05.5]}
5... a6 {[%clk 0:03:03.7]} 6. Be2 {[%clk 0:03:06.7]} 6... e5 {[%clk 0:03:04.6]}
7. Nb3 {[%clk 0:03:07.4]} 7... Be7 {[%clk 0:03:05.9]} 8. O-O {[%clk 0:03:07.9]}
8... Be6 {[%clk 0:03:07]} 9. f4 {[%clk 0:03:07]} 9... exf4 {[%clk 0:03:07]} 10.
Bxf4 {[%clk 0:03:07.1]} 10... Nc6 {[%clk 0:03:08.9]} 11. Kh1 {[%clk 0:03:07.8]}
11... O-O {[%clk 0:03:08.7]} 12. Qe1 {[%clk 0:03:08.9]} 12... d5 {[%clk
0:03:08.6]} 13. exd5 {[%clk 0:02:42.1]} 13... Nxd5 {[%clk 0:03:03.5]} 14. Rd1
{[%clk 0:02:42.8]} 14... Bb4 {[%clk 0:02:54.8]} 15. Qg3 {[%clk 0:02:36.4]} 15...
Bxc3 {[%clk 0:02:13.1]} 16. bxc3 {[%clk 0:02:36.8]} 16... Qf6 {[%clk 0:02:09.4]}
17. Bd6 {[%clk 0:02:22.1]} 17... Qg6 {[%clk 0:02:09]} 18. Qxg6 {[%clk
0:02:03.1]} 18... hxg6 {[%clk 0:02:10.9]} 19. Bxf8 {[%clk 0:02:03.9]} 19... Rxf8
{[%clk 0:02:09.6]} 20. Bf3 {[%clk 0:02:02.8]} 20... Ne3 {[%clk 0:02:06.4]} 21.
Nc5 {[%clk 0:01:39.8]} 21... Bxa2 {[%clk 0:02:03.6]} 22. Ra1 {[%clk 0:01:24.7]}
22... Nxf1 {[%clk 0:02:01.5]} 23. Rxa2 {[%clk 0:01:25]} 23... Nd2 {[%clk
0:01:53.8]} 24. Bxc6 {[%clk 0:01:18.9]} 24... bxc6 {[%clk 0:01:55.7]} 25. Rxa6
{[%clk 0:01:19.8]} 25... Re8 {[%clk 0:01:48.2]} 26. Kg1 {[%clk 0:01:14.4]} 26...
Re1+ {[%clk 0:01:47.8]} 27. Kf2 {[%clk 0:01:14.9]} 27... Rc1 {[%clk 0:01:49.7]}
28. Ke3 {[%clk 0:01:10.5]} 28... Nf1+ {[%clk 0:01:48]} 29. Kd3 {[%clk
0:01:10.2]} 29... Nxh2 {[%clk 0:01:48.6]} 30. Rxc6 {[%clk 0:01:10.5]} 30... Rg1
{[%clk 0:01:45.7]} 31. Rc8+ {[%clk 0:01:08.1]} 31... Kh7 {[%clk 0:01:45.3]} 32.
Ne4 {[%clk 0:01:08.8]} 32... f6 {[%clk 0:01:44.4]} 33. c4 {[%clk 0:01:07.7]}
33... Rxg2 {[%clk 0:01:44.4]} 34. c5 {[%clk 0:01:08.8]} 34... Nf3 {[%clk
0:01:42.7]} 35. c6 {[%clk 0:01:01.6]} 35... f5 {[%clk 0:01:41.4]} 36. Nc5 {[%clk
0:00:14.2]} 36... Ne5+ {[%clk 0:01:38.8]} 37. Kc3 {[%clk 0:00:15.3]} 37... Nxc6
{[%clk 0:01:40.7]} 38. Rxc6 {[%clk 0:00:15.5]} 38... g5 {[%clk 0:01:39.8]} 39.
Ne6 {[%clk 0:00:15.8]} 39... f4 {[%clk 0:01:40.7]} 40. Rc7 {[%clk 0:00:16.1]}
40... Kg6 {[%clk 0:01:38.9]} 41. Rxg7+ {[%clk 0:00:11.7]} 41... Kf6 {[%clk
0:01:37.9]} 42. Rxg5 {[%clk 0:00:11.3]} 42... Rxg5 {[%clk 0:01:36.9]} 43. Nxg5
{[%clk 0:00:12.3]} 43... Kxg5 {[%clk 0:01:35.1]} 44. Kd3 {[%clk 0:00:13.4]}
44... f3 {[%clk 0:01:32.7]} 45. Ke3 {[%clk 0:00:11.7]} 45... Kg4 {[%clk
0:01:34.1]} 46. Kf2 {[%clk 0:00:12.9]} 46... Kf4 {[%clk 0:01:32.1]} 47. c4
{[%clk 0:00:13.3]} 47... Ke4 {[%clk 0:01:32.6]} 48. c5 {[%clk 0:00:14.6]} 48...
Kd5 {[%clk 0:01:34]} 49. Kxf3 {[%clk 0:00:15.9]} 49... Kc6 {[%clk 0:01:35.7]}
50. Ke4 {[%clk 0:00:15.7]} 50... Kxc5 {[%clk 0:01:37.6]} 1/2-1/2

[Event "*** Titled Tuesday Blitz"]
[Site "Chess.com"]
[Date "2019.07.02"]
[Round "8"]
[White "OglazaOskar2005"]
[Black "TheCavemanChesss"]
[Result "0-1"]
[WhiteElo "2271"]
[BlackElo "2431"]
[TimeControl "180+2"]
[EndTime "14:48:42 PDT"]
[Termination "TheCavemanChesss won by checkmate"]

1. e4 {[%clk 0:02:59.4]} 1... c5 {[%clk 0:03:00.2]} 2. Nf3 {[%clk 0:02:59.3]}
2... d6 {[%clk 0:03:01.6]} 3. d4 {[%clk 0:02:59.1]} 3... cxd4 {[%clk 0:03:03.5]}
4. Nxd4 {[%clk 0:03:00]} 4... Nf6 {[%clk 0:03:05.2]} 5. Nc3 {[%clk 0:03:00.6]}
5... a6 {[%clk 0:03:06.9]} 6. h3 {[%clk 0:02:59.8]} 6... e6 {[%clk 0:03:07.1]}
7. g4 {[%clk 0:02:59.8]} 7... h6 {[%clk 0:03:08.4]} 8. Bg2 {[%clk 0:03:00.2]}
8... Be7 {[%clk 0:03:09.2]} 9. Be3 {[%clk 0:03:00.4]} 9... Qc7 {[%clk
0:03:10.3]} 10. Qe2 {[%clk 0:02:58.2]} 10... Nc6 {[%clk 0:03:08.4]} 11. O-O-O
{[%clk 0:02:58.1]} 11... Bd7 {[%clk 0:03:09.4]} 12. f4 {[%clk 0:02:58]} 12...
Rc8 {[%clk 0:03:08.6]} 13. Rhe1 {[%clk 0:02:57.8]} 13... b5 {[%clk 0:03:07.1]}
14. Nxc6 {[%clk 0:02:41.8]} 14... Bxc6 {[%clk 0:03:07.2]} 15. Bd4 {[%clk
0:02:38.9]} 15... b4 {[%clk 0:03:05.1]} 16. Nd5 {[%clk 0:02:38.8]} 16... exd5
{[%clk 0:03:02.1]} 17. exd5 {[%clk 0:02:34.7]} 17... Bb5 {[%clk 0:03:03.3]} 18.
Qf2 {[%clk 0:02:26.7]} 18... O-O {[%clk 0:02:59.8]} 19. g5 {[%clk 0:02:27]}
19... hxg5 {[%clk 0:02:48.9]} 20. fxg5 {[%clk 0:02:27.2]} 20... Nh5 {[%clk
0:02:50.1]} 21. Bf3 {[%clk 0:02:13.4]} 21... Nf4 {[%clk 0:02:12.4]} 22. Kb1
{[%clk 0:01:44.7]} 22... Bxg5 {[%clk 0:01:58.1]} 23. Be4 {[%clk 0:01:10.2]}
23... f5 {[%clk 0:01:51.4]} 24. Bf3 {[%clk 0:01:01.5]} 24... Rfe8 {[%clk
0:01:46.3]} 25. Rg1 {[%clk 0:00:44]} 25... Bh6 {[%clk 0:01:34.4]} 26. Qh4 {[%clk
0:00:37.3]} 26... Qxc2+ {[%clk 0:01:33.8]} 27. Ka1 {[%clk 0:00:35.9]} 27... Be2
{[%clk 0:00:23.8]} 28. Bxe2 {[%clk 0:00:24]} 28... Nxe2 {[%clk 0:00:21.2]} 29.
Bxg7 {[%clk 0:00:20.5]} 29... Bxg7 {[%clk 0:00:19.9]} 30. Rxg7+ {[%clk
0:00:19.1]} 30... Kxg7 {[%clk 0:00:21.4]} 31. Qg5+ {[%clk 0:00:20.4]} 31... Kf7
{[%clk 0:00:23]} 32. Qh5+ {[%clk 0:00:21.6]} 32... Ke7 {[%clk 0:00:24.6]} 33.
Qg5+ {[%clk 0:00:17.8]} 33... Kd7 {[%clk 0:00:25.9]} 34. Qg7+ {[%clk 0:00:18.7]}
34... Kd8 {[%clk 0:00:27]} 35. Qf6+ {[%clk 0:00:19.4]} 35... Kd7 {[%clk
0:00:28.5]} 36. Qg7+ {[%clk 0:00:13.2]} 36... Re7 {[%clk 0:00:29.9]} 37. Qd4
{[%clk 0:00:10.6]} 37... Qc1+ {[%clk 0:00:30.6]} 38. Rxc1 {[%clk 0:00:11.2]}
38... Rxc1# {[%clk 0:00:32.5]} 0-1

[Event "*** Titled Tuesday Blitz"]
[Site "Chess.com"]
[Date "2019.07.02"]
[Round "8"]
[White "STARMATEcc"]
[Black "axvesik"]
[Result "1-0"]
[WhiteElo "2552"]
[BlackElo "2442"]
[TimeControl "180+2"]
[EndTime "14:48:42 PDT"]
[Termination "STARMATEcc won by resignation"]

1. e4 {[%clk 0:02:58.3]} 1... e6 {[%clk 0:03:00.7]} 2. d4 {[%clk 0:02:58.3]}
2... d5 {[%clk 0:03:02.6]} 3. Nc3 {[%clk 0:02:59.9]} 3... Bb4 {[%clk 0:03:03.1]}
4. Bd3 {[%clk 0:02:57.1]} 4... dxe4 {[%clk 0:03:02.9]} 5. Bxe4 {[%clk
0:02:51.4]} 5... Nf6 {[%clk 0:03:04.8]} 6. Bf3 {[%clk 0:02:52.2]} 6... c5 {[%clk
0:03:05.5]} 7. a3 {[%clk 0:02:37.7]} 7... Bxc3+ {[%clk 0:03:00.4]} 8. bxc3
{[%clk 0:02:39.6]} 8... Nc6 {[%clk 0:03:01.7]} 9. Ne2 {[%clk 0:02:41.2]} 9... e5
{[%clk 0:02:53]} 10. Bxc6+ {[%clk 0:02:20.8]} 10... bxc6 {[%clk 0:02:51.6]} 11.
dxc5 {[%clk 0:02:22]} 11... Qxd1+ {[%clk 0:02:47.2]} 12. Kxd1 {[%clk 0:02:23.9]}
12... Bf5 {[%clk 0:02:45.5]} 13. Be3 {[%clk 0:02:23.5]} 13... O-O-O+ {[%clk
0:02:41.3]} 14. Kc1 {[%clk 0:02:23]} 14... Be4 {[%clk 0:02:32.6]} 15. f3 {[%clk
0:02:11]} 15... Bd5 {[%clk 0:02:25.7]} 16. Rb1 {[%clk 0:02:12.6]} 16... Bc4
{[%clk 0:02:25]} 17. Ng3 {[%clk 0:02:06.4]} 17... Nd5 {[%clk 0:02:24.5]} 18. Bd2
{[%clk 0:02:06.9]} 18... Kc7 {[%clk 0:02:11.5]} 19. Nf5 {[%clk 0:01:49.3]} 19...
Rb8 {[%clk 0:02:07.3]} 20. Nd6 {[%clk 0:01:40]} 20... Rxb1+ {[%clk 0:01:47.6]}
21. Kxb1 {[%clk 0:01:41]} 21... Rb8+ {[%clk 0:01:48.2]} 22. Ka1 {[%clk
0:01:41.8]} 22... Ba6 {[%clk 0:01:41]} 23. Nxf7 {[%clk 0:01:39.7]} 23... Re8
{[%clk 0:01:37.8]} 24. c4 {[%clk 0:01:36]} 24... Nf6 {[%clk 0:01:33.7]} 25. Nxe5
{[%clk 0:01:35.6]} 25... Nd7 {[%clk 0:01:26.9]} 26. Re1 {[%clk 0:01:02.4]} 26...
Nxe5 {[%clk 0:01:21.6]} 27. Bf4 {[%clk 0:00:59]} 27... Bxc4 {[%clk 0:01:19.5]}
28. Bxe5+ {[%clk 0:01:00.1]} 28... Kc8 {[%clk 0:01:15]} 29. Kb2 {[%clk
0:01:00.7]} 29... g6 {[%clk 0:01:15.8]} 30. Kc3 {[%clk 0:01:01.3]} 30... Bf7
{[%clk 0:01:08.4]} 31. Kd4 {[%clk 0:01:02.2]} 31... Re7 {[%clk 0:00:46.6]} 32.
h4 {[%clk 0:00:45.9]} 32... Bd5 {[%clk 0:00:35.1]} 33. c4 {[%clk 0:00:43.6]}
33... Bf7 {[%clk 0:00:35]} 34. g4 {[%clk 0:00:44.4]} 34... Rd7+ {[%clk 0:00:34]}
35. Bd6 {[%clk 0:00:44.8]} 35... Rb7 {[%clk 0:00:30.8]} 36. Re4 {[%clk
0:00:38.3]} 36... Kd8 {[%clk 0:00:28.1]} 37. Ke5 {[%clk 0:00:34.1]} 37... Rb3
{[%clk 0:00:22.9]} 38. Rf4 {[%clk 0:00:33.4]} 38... Ke8 {[%clk 0:00:21.1]} 39.
Kf6 {[%clk 0:00:34.5]} 39... Re3 {[%clk 0:00:21.7]} 40. Kg7 {[%clk 0:00:34.1]}
40... Bxc4 {[%clk 0:00:20]} 41. Rxc4 {[%clk 0:00:33.5]} 1-0